[Event "Irish New Year-GM 2022"]
[Site "Dublin"]
[Date "2022.01.05"]
[Round "7.4"]
[White "Cafolla, Peter"]
[Black "O`Gorman, Tom"]
[Result "0-1"]
[ECO "A45"]
[WhiteElo "1976"]
[BlackElo "2350"]
[Annotator "ChessBase"]
[PlyCount "74"]
[EventDate "2022.01.02"]
[EventType "tourn"]
[EventCountry "IRL"]
[SourceTitle "playchess.com"]
[Source "ChessBase"]
[SourceQuality "1"]
[TimeControl "5400+30"]

1. d4 {[%emt 0:00:03]} Nf6 {[%emt 0:00:04]} 2. Bg5 {[%emt 0:00:11]} Ne4 {[%emt 0:01:50]} 3. Bf4 {[%emt 0:00:05]} Nc6 {[%emt 0:00:03]} 4. f3 {[%emt 0:04:03]} Nf6 {[%emt 0:00:08]} 5. e4 {[%emt 0:04:12]} d5 {[%emt 0:00:08]} 6. e5 {[%emt 0:01:06]} Nd7 {[%emt 0:00:06]} 7. c3 {[%emt 0:04:03]} e6 {[%emt 0:00:31]} 8. Bd3 {[%emt 0:00:17]} f6 {[%emt 0:01:27]} 9. exf6 {[%emt 0:02:21]} Nxf6 {[%emt 0:00:12]} 10. Nd2 {[%emt 0:00:45]} Bd6 {[%emt 0:00:24]} 11. Bxd6 {[%emt 0:04:47]} Qxd6 {[%emt 0:01:18]} 12. Ne2 {[%emt 0:00:42]} e5 {[%emt 0:01:03]} 13. O-O {[%emt 0:07:22]} O-O {[%emt 0:01:01]} 14. Bc2 {[%emt 0:06:51]} Bd7 {[%emt 0:06:22]} 15. Nb3 {[%emt 0:01:11]} Rae8 {[%emt 0:01:07]} 16. Qd2 {[%emt 0:06:25]} exd4 {[%emt 0:03:25]} 17. cxd4 {[%emt 0:00:58]} b6 {[%emt 0:08:34]} 18. Rae1 {[%emt 0:01:12]} a5 {[%emt 0:01:15]} 19. Nc3 {[%emt 0:03:05]} Ne7 {[%emt 0:04:28]} 20. Nc1 {[%emt 0:09:16]} c5 {[%emt 0:05:36]} 21. dxc5 {[%emt 0:02:49]} bxc5 {[%emt 0:00:30]} 22. Ne4 {[%emt 0:00:39]} Nxe4 {[%emt 0:03:16]} 23. fxe4 {[%emt 0:00:10]} d4 {[%emt 0:03:33]} 24. Rxf8+ {[%emt 0:02:56]} Rxf8 {[%emt 0:00:11]} 25. e5 {[%emt 0:00:50]} Qb6 {[%emt 0:10:09]} 26. Bb3+ {[%emt 0:10:31]} Be6 {[%emt 0:03:14]} 27. Bxe6+ {[%emt 0:01:08]} Qxe6 {[%emt 0:00:01]} 28. Qxa5 {[%emt 0:00:39]} Qf5 {[%emt 0:03:12]} 29. Qd2 {[%emt 0:01:19]} Nd5 {[%emt 0:00:21]} 30. h3 {[%emt 0:04:26]} Ne3 {[%emt 0:03:09]} 31. Nd3 {[%emt 0:01:45]} c4 {[%emt 0:01:58]} 32. Nc5 {[%emt 0:03:05]} Nc2 {[%emt 0:07:15]} 33. Rc1 {[%emt 0:04:47]} d3 {[%emt 0:00:44]} 34. Qc3 {[%emt 0:00:53]} Qf2+ {[%emt 0:00:22]} 35. Kh1 {[%emt 0:01:42]} Qxc5 {[%emt 0:00:08]} 36. b3 {[%emt 0:00:06]} Qe3 {[%emt 0:01:42]} 37. Rxc2 {[%emt 0:02:53]} dxc2 {[%emt 0:00:32]} 0-1

[Event "Irish New Year-GM 2022"]
[Site "Dublin"]
[Date "2022.01.06"]
[Round "8.5"]
[White "Motwani, Paul"]
[Black "Murphy, Conor E"]
[Result "0-1"]
[ECO "C26"]
[WhiteElo "2432"]
[BlackElo "2431"]
[Annotator "ChessBase"]
[PlyCount "72"]
[EventDate "2022.01.02"]
[EventType "tourn"]
[EventCountry "IRL"]
[SourceTitle "playchess.com"]
[Source "ChessBase"]
[SourceQuality "1"]
[TimeControl "5400+30"]

1. e4 {[%emt 0:00:04]} e5 {[%emt 0:00:55]} 2. Nc3 {[%emt 0:00:07]} Nf6 {[%emt 0:00:17]} 3. g3 {[%emt 0:00:14]} Bc5 {[%emt 0:00:52]} 4. Bg2 {[%emt 0:00:12]} c6 {[%emt 0:02:19]} 5. Nge2 {[%emt 0:01:13]} d5 {[%emt 0:00:48]} 6. exd5 {[%emt 0:01:08]} cxd5 {[%emt 0:00:06]} 7. d4 {[%emt 0:00:42]} exd4 {[%emt 0:00:20]} 8. Nxd4 {[%emt 0:00:08]} O-O {[%emt 0:00:24]} 9. O-O {[%emt 0:01:07]} Bg4 {[%emt 0:00:23]} 10. Nf3 {[%emt 0:16:01]} h6 {[%emt 0:21:39]} 11. h3 {[%emt 0:03:54]} Bf5 {[%emt 0:03:38]} 12. g4 {[%emt 0:03:24]} Be6 {[%emt 0:05:23]} 13. Nd4 {[%emt 0:08:50]} Bxd4 {[%emt 0:02:32]} 14. Qxd4 {[%emt 0:00:08]} Nc6 {[%emt 0:00:05]} 15. Qd1 {[%emt 0:02:28]} d4 {[%emt 0:02:13]} 16. Ne2 {[%emt 0:00:51]} Bd5 {[%emt 0:02:06]} 17. f3 {[%emt 0:00:50]} Bc4 {[%emt 0:06:55]} 18. Rf2 {[%emt 0:05:46]} Re8 {[%emt 0:03:41]} 19. b3 {[%emt 0:09:48]} Bxe2 {[%emt 0:09:43]} 20. Rxe2 {[%emt 0:00:25]} Qb6 {[%emt 0:00:14]} 21. Rf2 {[%emt 0:10:30]} Nd5 {[%emt 0:01:57]} 22. Qd2 {[%emt 0:04:53]} Re3 {[%emt 0:08:20]} 23. f4 {[%emt 0:05:31]} Nc3 {[%emt 0:01:24]} 24. Bb2 {[%emt 0:03:08]} Rae8 {[%emt 0:00:45]} 25. Raf1 {[%emt 0:03:17]} Nb4 {[%emt 0:12:25]} 26. a3 {[%emt 0:10:16]} Re2 {[%emt 0:01:18]} 27. axb4 {[%emt 0:01:11]} Rxd2 {[%emt 0:00:16]} 28. Rxd2 {[%emt 0:00:07]} Re2 {[%emt 0:02:14]} 29. Rxe2 {[%emt 0:02:11]} Nxe2+ {[%emt 0:00:03]} 30. Kh2 {[%emt 0:00:14]} Nxf4 {[%emt 0:00:14]} 31. Rxf4 {[%emt 0:02:02]} Qc7 {[%emt 0:00:34]} 32. Bc1 {[%emt 0:00:18]} g5 {[%emt 0:00:09]} 33. Be4 {[%emt 0:00:23]} gxf4 {[%emt 0:00:31]} 34. Kg2 {[%emt 0:00:22]} Qe7 {[%emt 0:01:29]} 35. Bd3 {[%emt 0:01:37]} Qxb4 {[%emt 0:00:43]} 36. Bxf4 {[%emt 0:00:15]} b5 {[%emt 0:00:17]} 0-1

[Event "Irish New Year-GM 2022"]
[Site "Dublin"]
[Date "2022.01.06"]
[Round "9.1"]
[White "Murphy, Conor E"]
[Black "Arkell, Keith C"]
[Result "1-0"]
[ECO "B06"]
[WhiteElo "2431"]
[BlackElo "2370"]
[Annotator "NA"]
[PlyCount "83"]
[EventDate "2022.01.02"]
[EventType "tourn"]
[EventCountry "IRL"]
[SourceTitle "playchess.com"]
[Source "ChessBase"]
[SourceQuality "1"]
[TimeControl "5400+30"]

1. e4 {[%emt 0:03:01]} g6 {[%emt 0:00:17]} 2. d4 {[%emt 0:00:15]} Bg7 {[%emt 0:00:06]} 3. Nf3 {[%emt 0:00:33]} c6 {[%emt 0:00:27]} 4. h3 {[%emt 0:00:36]} d6 {[%emt 0:00:19]} 5. Bc4 {[%emt 0:05:19]} d5 {[%emt 0:00:14]} 6. Bb3 {[%emt 0:00:21]} dxe4 {[%emt 0:10:18]} 7. Ng5 $1 {[%emt 0:00:40]} e6 {[%emt 0:01:25]} 8. c3 {[%emt 0:04:53]} Nf6 {[%emt 0:00:16]} 9. Qe2 {[%emt 0:02:20]} h6 {[%emt 0:00:56]} (9... b6 $11) 10. Nxe4 {[%emt 0:00:14]} Nxe4 {[%emt 0:00:04]} 11. Qxe4 {[%emt 0:00:07]} Nd7 {[%emt 0:00:13]} 12. O-O {[%emt 0:03:00]} Nf6 {[%emt 0:00:08]} 13. Qf3 {[%emt 0:02:33]} O-O {[%emt 0:00:07]} 14. Re1 {[%emt 0:02:37]} a5 {[%emt 0:05:32]} 15. a4 {[%emt 0:06:07]} Qb6 {[%emt 0:05:46]} 16. Nd2 {[%emt 0:01:19]} Nd5 {[%emt 0:00:17]} 17. Ba2 {[%emt 0:05:28]} Bd7 {[%emt 0:00:29]} 18. Nc4 {[%emt 0:02:44]} Qc7 {[%emt 0:00:06]} 19. Ne5 {[%emt 0:00:35]} Rad8 {[%emt 0:00:19]} 20. Ng4 $14 {[%emt 0:04:02]} h5 {[%emt 0:06:07]} 21. Ne5 {[%emt 0:00:58]} c5 {[%emt 0:01:32]} 22. Bxd5 {[%emt 0:20:03]} exd5 {[%emt 0:01:19]} 23. Bf4 {[%emt 0:00:19]} Qb6 {[%emt 0:18:40]} 24. Qxd5 {[%emt 0:01:25]} Bxh3 {[%emt 0:06:24]} 25. Qxc5 {[%emt 0:06:12]} Qxc5 {[%emt 0:01:49]} 26. dxc5 {[%emt 0:00:03]} Be6 {[%emt 0:01:09]} 27. Nf3 {[%emt 0:01:31]} Bd5 {[%emt 0:02:32]} 28. Bc7 {[%emt 0:02:19]} Rc8 {[%emt 0:02:49]} 29. Bb6 {[%emt 0:03:21]} Bf6 {[%emt 0:04:15]} 30. Ne5 {[%emt 0:01:14]} Rfe8 {[%emt 0:04:59]} 31. Nd7 {[%emt 0:01:29]} Bg7 {[%emt 0:04:16]} 32. Rxe8+ {[%emt 0:06:52]} Rxe8 {[%emt 0:00:14]} 33. Bxa5 {[%emt 0:00:13]} Re2 {[%emt 0:00:23]} 34. Nb6 {[%emt 0:00:41]} Be6 {[%emt 0:00:31]} 35. c6 {[%emt 0:05:32]} bxc6 {[%emt 0:00:11]} 36. Bb4 {[%emt 0:00:02]} Be5 {[%emt 0:15:19]} 37. a5 {[%emt 0:01:08]} Bb8 {[%emt 0:00:11]} 38. a6 {[%emt 0:01:32]} Ba7 {[%emt 0:00:05]} 39. Bc5 {[%emt 0:00:16]} Re5 {[%emt 0:07:09]} 40. b4 {[%emt 0:02:32]} Rg5 {[%emt 0:01:56]} 41. Na4 {[%emt 0:00:41]} Bb8 {[%emt 0:00:58]} 42. Be3 {[%emt 0:02:10]} 1-0

[Event "Irish New Year-GM 2022"]
[Site "Dublin"]
[Date "2022.01.06"]
[Round "9.3"]
[White "Cafolla, Peter"]
[Black "Kanyamarala, Tarun"]
[Result "0-1"]
[ECO "B70"]
[WhiteElo "1976"]
[BlackElo "2377"]
[Annotator "ChessBase"]
[PlyCount "168"]
[EventDate "2022.01.02"]
[EventType "tourn"]
[EventCountry "IRL"]
[SourceTitle "playchess.com"]
[Source "ChessBase"]
[SourceQuality "1"]
[TimeControl "5400+30"]

1. e4 {[%emt 0:00:06]} c5 {[%emt 0:00:14]} 2. Nf3 {[%emt 0:00:15]} Nc6 {[%emt 0:00:09]} 3. d4 {[%emt 0:00:06]} cxd4 {[%emt 0:00:07]} 4. Nxd4 {[%emt 0:00:06]} Nf6 {[%emt 0:00:10]} 5. Nc3 {[%emt 0:00:05]} d6 {[%emt 0:00:36]} 6. g3 {[%emt 0:04:12]} g6 {[%emt 0:01:16]} 7. Bg2 {[%emt 0:00:21]} Nxd4 {[%emt 0:00:16]} 8. Qxd4 {[%emt 0:00:06]} Bg7 {[%emt 0:00:09]} 9. Nd5 {[%emt 0:05:32]} O-O {[%emt 0:00:41]} 10. c3 {[%emt 0:00:20]} Be6 {[%emt 0:02:42]} 11. Qd1 {[%emt 0:01:34]} Nd7 {[%emt 0:14:30]} 12. O-O {[%emt 0:01:20]} Nb6 {[%emt 0:02:41]} 13. Re1 {[%emt 0:08:25]} Rc8 {[%emt 0:12:37]} 14. Rb1 {[%emt 0:03:14]} Nc4 {[%emt 0:02:12]} 15. Ne3 {[%emt 0:03:41]} Qa5 {[%emt 0:11:26]} 16. a3 {[%emt 0:05:15]} a6 {[%emt 0:11:33]} 17. Nxc4 {[%emt 0:01:55]} Rxc4 {[%emt 0:03:19]} 18. Bf1 {[%emt 0:03:15]} Rcc8 {[%emt 0:04:33]} 19. Be3 {[%emt 0:01:30]} Rfd8 {[%emt 0:01:10]} 20. Bd4 {[%emt 0:03:33]} Be5 {[%emt 0:03:42]} 21. Qd2 {[%emt 0:04:51]} Bb3 {[%emt 0:02:12]} 22. Qe3 {[%emt 0:01:03]} Rc6 {[%emt 0:01:20]} 23. Qg5 {[%emt 0:06:42]} Qc7 {[%emt 0:00:47]} 24. Rbc1 {[%emt 0:01:41]} Rc8 {[%emt 0:02:10]} 25. Qe3 {[%emt 0:05:00]} Bxd4 {[%emt 0:06:06]} 26. Qxd4 {[%emt 0:00:11]} e5 {[%emt 0:00:37]} 27. Qe3 {[%emt 0:01:40]} Qa5 {[%emt 0:03:16]} 28. h4 {[%emt 0:04:27]} Qb6 {[%emt 0:02:20]} 29. Qxb6 {[%emt 0:02:39]} Rxb6 {[%emt 0:00:06]} 30. Re2 {[%emt 0:00:15]} Kf8 {[%emt 0:01:57]} 31. Rd2 {[%emt 0:00:42]} Ke7 {[%emt 0:00:22]} 32. Bd3 {[%emt 0:00:19]} Rc5 {[%emt 0:01:45]} 33. Kf1 {[%emt 0:00:45]} a5 {[%emt 0:01:03]} 34. Re1 {[%emt 0:01:07]} Be6 {[%emt 0:01:31]} 35. Be2 {[%emt 0:05:06]} Bh3+ {[%emt 0:01:43]} 36. Kg1 {[%emt 0:00:07]} Bd7 {[%emt 0:00:48]} 37. Kf1 {[%emt 0:00:37]} Bc6 {[%emt 0:01:02]} 38. Bd3 {[%emt 0:00:59]} Rb3 {[%emt 0:00:42]} 39. Ree2 {[%emt 0:02:18]} Bd7 {[%emt 0:00:29]} 40. f3 {[%emt 0:00:13]} Rc8 {[%emt 0:01:50]} 41. Ke1 {[%emt 0:00:36]} Rb6 {[%emt 0:00:49]} 42. Kf2 {[%emt 0:02:04]} h5 {[%emt 0:00:15]} 43. Ke1 {[%emt 0:23:47]} Rc5 {[%emt 0:00:19]} 44. Re3 {[%emt 0:00:00]} Rbc6 {[%emt 0:00:29]} 45. Kf2 {[%emt 0:00:00]} Rc8 {[%emt 0:00:12]} 46. Ree2 {[%emt 0:00:00]} Rf8 {[%emt 0:00:39]} 47. Ke1 {[%emt 0:00:00]} f5 {[%emt 0:00:34]} 48. Rg2 {[%emt 0:00:00]} Rf6 {[%emt 0:01:17]} 49. Rde2 {[%emt 0:00:00]} Kf7 {[%emt 0:00:55]} 50. Kd2 {[%emt 0:00:00]} f4 {[%emt 0:00:42]} 51. Ref2 {[%emt 0:00:00]} Rc8 {[%emt 0:02:19]} 52. Be2 {[%emt 0:00:00]} Rh8 {[%emt 0:00:23]} 53. Bc4+ {[%emt 0:00:00]} Kg7 {[%emt 0:00:14]} 54. Rg1 {[%emt 0:00:00]} Rhf8 {[%emt 0:00:59]} 55. Be2 {[%emt 0:00:00]} fxg3 {[%emt 0:00:36]} 56. Rxg3 {[%emt 0:00:00]} Rf4 {[%emt 0:00:08]} 57. Rfg2 {[%emt 0:00:00]} R8f6 {[%emt 0:00:13]} 58. Rh2 {[%emt 0:00:00]} Rf8 {[%emt 0:00:42]} 59. Rhg2 {[%emt 0:00:00]} Be8 {[%emt 0:00:17]} 60. Rh2 {[%emt 0:00:00]} Bf7 {[%emt 0:00:09]} 61. Rg1 {[%emt 0:00:00]} d5 {[%emt 0:00:43]} 62. Ke3 {[%emt 0:00:00]} Kf6 {[%emt 0:01:19]} 63. Bd3 {[%emt 0:00:00]} Rg8 {[%emt 0:00:32]} 64. exd5 {[%emt 0:00:00]} Bxd5 {[%emt 0:00:26]} 65. Be4 {[%emt 0:00:00]} Bxe4 {[%emt 0:00:32]} 66. fxe4 {[%emt 0:00:00]} Rd8 {[%emt 0:00:55]} 67. Rhg2 {[%emt 0:00:00]} Rg8 {[%emt 0:00:12]} 68. Rh1 {[%emt 0:00:00]} g5 {[%emt 0:00:10]} 69. hxg5+ {[%emt 0:00:24]} Rxg5 {[%emt 0:00:05]} 70. Rxg5 {[%emt 0:01:32]} Kxg5 {[%emt 0:00:03]} 71. b4 {[%emt 0:00:27]} a4 {[%emt 0:00:33]} 72. Rg1+ {[%emt 0:00:42]} Rg4 {[%emt 0:00:11]} 73. Rf1 {[%emt 0:00:10]} Rg3+ {[%emt 0:00:32]} 74. Kd2 {[%emt 0:01:48]} h4 {[%emt 0:00:17]} 75. Rf7 {[%emt 0:00:41]} b5 {[%emt 0:00:58]} 76. Rf5+ {[%emt 0:00:41]} Kg4 {[%emt 0:00:11]} 77. Rf8 {[%emt 0:03:39]} h3 {[%emt 0:00:27]} 78. Rh8 {[%emt 0:00:30]} Kf3 {[%emt 0:00:28]} 79. c4 {[%emt 0:00:13]} bxc4 {[%emt 0:00:37]} 80. b5 {[%emt 0:00:06]} Kg2 {[%emt 0:00:21]} 81. b6 {[%emt 0:00:30]} Rb3 {[%emt 0:01:42]} 82. Rg8+ {[%emt 0:00:22]} Kf3 {[%emt 0:00:26]} 83. Rg6 {[%emt 0:01:43]} h2 {[%emt 0:00:56]} 84. Rh6 {[%emt 0:00:08]} Rxb6 {[%emt 0:01:34]} 0-1

[Event "Irish New Year-GM 2022"]
[Site "Dublin"]
[Date "2022.01.06"]
[Round "9.4"]
[White "Fitzsimons, David"]
[Black "Stefansson, Vignir Vatnar"]
[Result "1/2-1/2"]
[ECO "C01"]
[WhiteElo "2337"]
[BlackElo "2457"]
[Annotator "RC"]
[PlyCount "77"]
[EventDate "2022.01.02"]
[EventType "tourn"]
[EventCountry "IRL"]
[SourceTitle "playchess.com"]
[Source "ChessBase"]
[SourceQuality "1"]
[TimeControl "5400+30"]

1. e4 {[%emt 0:00:01]} e6 {[%emt 0:00:49]} 2. d4 {[%emt 0:00:10]} d5 {[%emt 0:00:06]} 3. Nc3 {[%emt 0:00:15]} Bb4 {[%emt 0:01:11]} 4. exd5 {[%emt 0:00:11]} exd5 {[%emt 0:00:08]} 5. Bd3 {[%emt 0:00:05]} Nc6 {[%emt 0:00:07]} 6. Nf3 {[%emt 0:00:10]} Bg4 {[%emt 0:00:13]} 7. O-O {[%emt 0:00:21]} Nge7 {[%emt 0:02:14]} 8. h3 {[%emt 0:00:23]} Bh5 {[%emt 0:01:21]} 9. a3 {[%emt 0:03:04]} Bxc3 {[%emt 0:06:04]} 10. bxc3 {[%emt 0:00:06]} Qd7 {[%emt 0:00:19]} 11. Re1 {[%emt 0:00:40]} O-O-O {[%emt 0:02:42]} 12. a4 {[%emt 0:00:43]} Rhe8 {[%emt 0:02:00]} 13. Ba3 {[%emt 0:04:21]} f6 {[%emt 0:15:18]} 14. Bb5 {[%emt 0:05:26]} Ng8 {[%emt 0:05:58]} 15. Qd3 {[%emt 0:06:10]} Bg6 {[%emt 0:03:28]} 16. Qd2 {[%emt 0:00:06]} a6 {[%emt 0:00:12]} 17. Bf1 {[%emt 0:02:07]} Na5 {[%emt 0:01:29]} 18. Reb1 {[%emt 0:19:02]} Ne7 {[%emt 0:03:06]} 19. Bxe7 {[%emt 0:04:48]} Rxe7 {[%emt 0:00:43]} 20. Nh4 {[%emt 0:09:22]} Be4 {[%emt 0:06:47]} 21. f3 {[%emt 0:01:24]} Bg6 {[%emt 0:03:23]} 22. Nxg6 {[%emt 0:00:49]} hxg6 {[%emt 0:00:06]} 23. Qd3 {[%emt 0:00:23]} Qe8 {[%emt 0:07:28]} 24. Qd2 {[%emt 0:04:22]} Rd6 {[%emt 0:04:14]} 25. h4 {[%emt 0:04:14]} Rde6 {[%emt 0:01:10]} 26. c4 {[%emt 0:06:46]} Nxc4 {[%emt 0:00:39]} 27. Bxc4 {[%emt 0:00:07]} dxc4 {[%emt 0:00:06]} 28. d5 {[%emt 0:00:05]} Re5 {[%emt 0:05:25]} 29. Qd4 {[%emt 0:04:28]} Re1+ {[%emt 0:10:52]} 30. Kh2 {[%emt 0:00:15]} Rxb1 {[%emt 0:00:14]} 31. Rxb1 {[%emt 0:00:05]} Re2 {[%emt 0:00:03]} 32. Qxc4 {[%emt 0:01:27]} Qe5+ {[%emt 0:03:18]} 33. Kh1 {[%emt 0:00:07]} Re1+ {[%emt 0:00:43]} 34. Rxe1 {[%emt 0:00:05]} Qxe1+ {[%emt 0:00:02]} 35. Kh2 {[%emt 0:00:08]} Qe5+ {[%emt 0:00:10]} 36. f4 {[%emt 0:02:18]} Qe1 {[%emt 0:01:51]} 37. d6 {[%emt 0:02:13]} Qxh4+ {[%emt 0:00:07]} 38. Kg1 {[%emt 0:00:04]} Qe1+ {[%emt 0:00:05]} 39. Kh2 {[%emt 0:00:03]} 1/2-1/2